bitfinex/quotes_ETHUSD_20250426
["timestamp","ask_amount","ask_price","bid_price","bid_amount"]
[1745705711583,3.0,1826.3,1825.9,10.2075623]
[1745705711783,5.4763801,1826.1,1825.9,4.731]
[1745705711980,3.0,1826.4,1825.9,4.731]
[1745705712283,5.47615767,1826.1,1825.9,4.731]
[1745705713018,5.47592225,1826.2,1825.9,4.731]
[1745705713204,5.47567732,1826.3,1825.9,4.731]
[1745705713513,3.98866,1826.4,1825.9,4.78575993]
[1745705713817,5.47571022,1826.3,1825.9,10.26238177]
[1745705714028,8.47546679,1826.4,1825.9,10.20762184]
[1745705714312,8.47546679,1826.4,1826.0,0.8037]
[1745705714613,8.47535738,1826.4,1826.0,0.8037]
[1745705714780,5.47558938,1826.3,1826.0,0.8037]
[1745705714975,5.47598567,1826.2,1826.0,0.8037]
[1745705715180,5.47573401,1826.3,1826.0,0.8037]
[1745705715511,10.01157177,1826.4,1826.0,0.8037]
[1745705715512,3.0,1826.4,1826.0,6.28012949]
[1745705715703,6.11,1826.5,1826.0,6.28012949]
[1745705715704,5.47510144,1826.5,1826.0,6.28012949]
[1745705715904,5.47510144,1826.5,1826.1,0.62801295]
[1745705716107,3.0,1826.4,1826.1,0.62801295]
[1745705716416,11.58483071,1826.6,1826.1,0.62801295]
[1745705716717,3.0,1826.5,1826.0,0.8037]
[1745705716922,8.475693,1826.3,1826.0,0.8037]
[1745705717153,3.0,1826.2,1826.0,0.8037]
[1745705717301,5.47543967,1826.4,1826.0,0.8037]
[1745705717302,8.47541524,1826.4,1826.0,0.8037]
[1745705717505,3.0,1826.3,1826.0,0.8037]
[1745705717700,5.47534218,1826.4,1826.0,1.90482938]
[1745705717909,8.47569895,1826.3,1826.0,1.90482938]
[1745705718442,3.0,1826.3,1826.0,1.90482938]
[1745705718746,8.47557025,1826.3,1826.0,1.90482938]
[1745705718952,5.47566984,1826.3,1826.0,0.8037]
[1745705719157,8.47605956,1826.2,1826.0,4.731]
[1745705719444,8.47626997,1826.1,1826.0,4.731]
[1745705720405,0.54865952,1826.5,1826.0,4.731]
[1745705720406,5.473647,1827.0,1826.5,5.47481434]
[1745705720615,5.47339885,1827.1,1826.6,10.20551153]
[1745705720838,5.47377806,1826.9,1826.6,4.731]
[1745705721419,5.47405784,1826.8,1826.6,4.731]
[1745705722244,5.47415594,1826.8,1826.6,4.731]
[1745705722847,8.47435265,1826.7,1826.6,4.731]
[1745705723864,10.00489946,1826.7,1826.6,4.731]
[1745705725156,5.47509409,1826.5,1826.3,4.73]
[1745705725767,8.47525186,1826.4,1826.3,4.73]
[1745705725927,3.0,1826.4,1826.3,4.73]
[1745705726129,3.0,1826.6,1826.3,4.73]
[1745705726462,3.0,1826.6,1826.4,0.7971]
[1745705726967,6.11,1826.7,1826.4,6.27233896]
[1745705727196,6.11,1826.7,1826.4,0.7971]
[1745705728152,6.11,1826.7,1826.4,6.27226495]
[1745705728358,8.4737609,1826.9,1826.5,5.47479915]
[1745705728557,8.4737609,1826.9,1826.5,6.64950556]
[1745705728871,8.4737609,1826.9,1826.5,1.17470641]
[1745705728872,8.47394981,1826.9,1826.5,1.17470641]
[1745705729369,5.47430428,1826.8,1826.4,0.7971]
[1745705729572,5.47454093,1826.7,1826.4,0.7971]
[1745705729954,5.47426386,1826.8,1826.4,0.7971]
[1745705730275,5.47421318,1826.8,1826.4,0.7971]
[1745705730432,3.0,1826.7,1826.4,0.7971]
[1745705730634,3.0,1826.7,1826.4,1.99941824]
[1745705731093,8.4744325,1826.7,1826.4,1.99941824]
[1745705731250,8.4744325,1826.7,1826.4,0.7971]
[1745705731586,3.0,1826.7,1826.4,0.7971]
[1745705731990,12.40159211,1827.1,1826.6,5.47452187]
[1745705732171,5.47349521,1827.0,1826.5,5.97470842]
[1745705732484,3.0,1826.9,1826.5,6.65188926]
[1745705732792,3.0,1826.9,1826.5,6.70663036]
[1745705733290,3.0,1826.9,1826.5,6.65188926]
[1745705734190,8.47389075,1826.9,1826.5,6.65188926]
[1745705734363,8.47389075,1826.9,1826.5,1.17718084]
[1745705734717,8.47465235,1826.6,1826.5,0.5]
[1745705735694,5.47499886,1826.5,1826.3,4.73]
[1745705736052,5.47525186,1826.4,1826.3,4.73]
[1745705737996,8.47513173,1826.5,1826.3,4.73]
[1745705738203,5.47555166,1826.3,1826.0,4.775]
[1745705738369,1.35195952,1826.4,1826.0,4.775]
[1745705738370,8.47615136,1826.1,1826.0,4.775]
[1745705739175,9.27945136,1826.1,1826.0,4.775]
[1745705740607,6.11,1826.4,1826.0,11.01077204]
[1745705740906,3.0,1826.3,1826.0,5.5345]
[1745705741103,3.0,1826.3,1826.1,0.55345]
[1745705741872,5.47480622,1826.6,1826.2,5.53045912]
[1745705742073,5.47496017,1826.5,1826.1,6.02945287]
[1745705742472,3.0,1826.4,1826.1,6.02940259]
[1745705742776,3.0,1826.4,1826.1,0.55345]
[1745705742977,8.47539573,1826.4,1826.1,0.55345]
[1745705743213,3.0,1826.4,1826.1,0.55345]
[1745705743802,8.47525404,1826.4,1826.1,0.55345]
[1745705744010,5.47563715,1826.3,1826.0,5.5345]
[1745705744514,5.47615136,1826.1,1826.0,4.775]
[1745705744717,14.58615136,1826.1,1826.0,4.775]
[1745705745080,5.47680136,1825.9,1825.7,4.775]
[1745705745420,5.47680136,1825.9,1825.8,0.4775]
[1745705745920,8.47662296,1826.0,1825.8,0.4775]
[1745705746325,8.47662296,1826.0,1825.7,4.775]
[1745705746893,5.47676498,1825.9,1825.7,4.775]
[1745705748630,5.47762434,1825.7,1825.5,4.776]
[1745705749205,3.0,1825.8,1825.5,4.776]
[1745705749530,3.0,1825.8,1825.5,7.74123738]
[1745705749767,8.47707058,1825.8,1825.5,7.74123738]
[1745705750134,5.47737604,1825.7,1825.5,7.74123738]
[1745705750432,5.47765118,1825.6,1825.4,18.63197]
[1745705750634,8.47777619,1825.6,1825.4,23.40797]
[1745705750835,5.47795124,1825.5,1825.4,21.211]
[1745705750994,8.47795124,1825.5,1825.4,21.211]
[1745705753338,8.47795124,1825.5,1825.4,4.776]
[1745705753745,0.76,1825.3,1824.8,0.7663]
[1745705753901,5.47945205,1825.0,1824.9,4.776]
[1745705754107,9.23967736,1825.0,1824.6,17.2023]
[1745705754400,8.47967736,1825.0,1824.6,22.68283834]
[1745705754802,5.47989972,1824.9,1824.6,17.2023]
[1745705755239,5.48035293,1824.7,1824.6,16.436]
[1745705755545,3.0,1825.0,1824.6,18.53068083]
[1745705756316,5.47995738,1824.9,1824.6,18.53068083]
[1745705756511,5.4800526,1824.8,1824.7,0.10330187]
[1745705756712,5.4800526,1824.8,1824.6,16.436]
[1745705756913,5.4800526,1824.8,1824.7,0.10315964]
[1745705757146,5.4800526,1824.8,1824.6,16.436]
[1745705757320,5.4800526,1824.8,1824.7,0.10315964]
[1745705757722,5.4800526,1824.8,1824.6,16.436]
[1745705757922,5.4800526,1824.8,1824.7,0.10315964]
[1745705758144,10.88470741,1824.8,1824.7,0.10315964]
[1745705758309,5.48054961,1824.7,1824.5,4.776]
[1745705758510,5.48054961,1824.7,1824.6,0.10323576]
[1745705759640,9.24015875,1824.8,1824.6,0.10323576]
[1745705759844,5.48035293,1824.7,1824.6,0.10323576]
[1745705760723,8.48018931,1824.8,1824.6,0.10323576]
[1745705761851,5.48018931,1824.8,1824.6,0.10323576]
[1745705762020,3.0,1824.7,1824.6,0.10323576]
[1745705762923,8.48035293,1824.7,1824.6,0.10323576]
[1745705763750,9.02901245,1824.7,1824.6,0.10323576]
[1745705763952,11.22856909,1824.7,1824.6,0.10323576]
[1745705764144,5.48119941,1824.5,1824.2,4.779]
[1745705764449,3.0,1824.4,1824.2,4.779]
[1745705765020,5.48155456,1824.3,1824.2,4.779]
[1745705765849,8.48155456,1824.3,1824.2,4.779]
[1745705766524,9.03021408,1824.3,1824.2,4.779]
[1745705766724,5.48245614,1824.0,1823.9,4.778]
[1745705766945,8.48245614,1824.0,1823.9,4.778]
[1745705767324,5.48309953,1823.8,1823.6,4.778]
[1745705767641,6.11,1824.1,1823.8,5.48303414]
[1745705767842,3.0,1824.0,1823.8,0.63121341]
[1745705768220,8.48264101,1824.0,1823.8,0.63121341]
[1745705768555,8.48264101,1824.0,1823.7,0.8291]
[1745705768753,3.0,1824.0,1823.7,0.8291]
[1745705769469,3.0,1824.2,1823.8,5.48293229]
[1745705769839,3.0,1824.3,1823.9,5.48255819]
[1745705770048,3.0,1824.4,1824.0,6.26792035]
[1745705770264,3.0,1824.3,1824.0,6.73954785]
[1745705770944,3.0,1824.3,1824.0,12.22195892]
[1745705771140,5.48141052,1824.4,1824.0,6.73954785]
[1745705771359,8.48125411,1824.4,1824.0,6.73954785]
[1745705771547,5.48157225,1824.3,1824.0,6.73954785]
[1745705772369,8.4814438,1824.4,1824.0,6.73954785]
[1745705773074,5.48160759,1824.3,1824.0,6.73954785]
[1745705773261,5.48160759,1824.3,1824.0,5.5645]
[1745705773459,3.0,1824.1,1824.0,5.5645]
[1745705773674,8.48215558,1824.1,1824.0,4.779]
[1745705774075,5.48293077,1823.9,1823.7,4.779]
[1745705774296,3.0,1823.8,1823.7,4.779]
[1745705774752,6.30945999,1824.2,1823.7,4.779]
[1745705774753,5.48264053,1824.0,1823.7,4.779]
[1745705774945,3.0,1823.9,1823.7,4.779]
[1745705775152,3.0,1824.0,1823.7,4.779]
[1745705775353,3.0,1824.0,1823.8,0.12273022]
[1745705775688,3.0,1824.2,1823.8,6.09576636]
[1745705775988,3.0,1824.2,1823.9,0.7855]
[1745705776347,8.48187914,1824.2,1824.0,0.10510912]
[1745705776658,3.0,1824.3,1824.0,0.10510912]
[1745705776858,8.48168281,1824.3,1824.0,0.10510912]
[1745705777583,5.4818962,1824.2,1824.0,0.10510912]
[1745705778187,0.8275,1824.4,1824.0,5.58735685]
[1745705778188,9.30892275,1824.4,1824.0,5.58735685]
[1745705778383,8.48142275,1824.4,1824.0,5.58735685]
[1745705778880,8.48142275,1824.4,1824.0,0.10510912]
[1745705778881,3.0,1824.3,1824.0,0.10510912]
[1745705779270,3.0,1824.3,1824.0,5.58754404]
[1745705779484,3.0,1824.3,1824.0,6.77310126]
[1745705780079,3.0,1824.3,1824.0,1.29066634]
[1745705780281,8.48159002,1824.3,1824.0,1.29066634]
[1745705780748,3.0,1824.3,1824.0,1.29066634]
[1745705781653,8.48160712,1824.3,1824.0,1.29066634]
[1745705781872,3.0,1824.1,1824.0,0.10510912]
[1745705783496,3.0,1824.1,1823.7,11.04762879]
[1745705783697,3.0,1824.1,1823.8,0.10533854]
[1745705783996,8.48224536,1824.1,1823.8,0.10533854]
[1745705784565,9.9614191,1824.1,1823.8,0.10533854]
[1745705784766,3.0,1823.9,1823.8,0.10533854]
[1745705786066,8.48275673,1823.9,1823.8,0.10533854]
[1745705786267,3.8275,1824.2,1823.8,0.10533854]
[1745705786467,3.0,1824.1,1823.8,6.35785579]
[1745705786668,5.48240559,1824.1,1823.8,0.87483854]
[1745705786972,5.48248083,1824.0,1823.8,0.10533854]
[1745705787498,8.48238445,1824.1,1823.8,0.10533854]
[1745705787700,5.48249454,1824.0,1823.8,0.10533854]
[1745705787881,8.48227616,1824.1,1823.8,0.10533854]
[1745705788385,3.0,1824.1,1823.8,1.14210819]
[1745705788605,3.0,1824.1,1823.9,0.7695]
[1745705788910,3.0,1824.1,1824.0,0.1053758]
[1745705789506,3.0,1824.1,1824.0,5.58783194]
[1745705789995,3.0,1824.1,1824.0,0.1053758]
[1745705791222,8.48215558,1824.1,1824.0,0.1053758]
[1745705791525,9.93328321,1824.1,1823.7,5.6117]
[1745705791736,8.48215558,1824.1,1823.8,0.1055282]
[1745705792037,5.48246471,1824.0,1823.8,0.1055282]
[1745705792338,3.0,1824.1,1823.8,0.1055282]
[1745705794038,3.0,1824.1,1823.9,5.48267984]
[1745705794194,3.0,1824.1,1823.8,5.58856018]
[1745705794399,3.0,1824.1,1824.0,0.1053758]
[1745705794649,3.0,1824.2,1823.9,0.10545199]
[1745705794812,5.48245614,1824.0,1823.9,0.10545199]
[1745705795010,5.48245614,1824.0,1823.7,5.6117]
[1745705795201,5.48245614,1824.0,1823.9,0.10545199]
[1745705795408,6.87892817,1824.0,1823.8,0.10486441]
[1745705795631,9.87892817,1824.0,1823.9,0.1047882]
[1745705795940,9.87892817,1824.0,1823.7,5.6117]
[1745705796099,9.87892817,1824.0,1823.8,0.10486441]
[1745705796300,5.48275673,1823.9,1823.8,0.10486441]
[1745705797405,6.54769961,1823.9,1823.8,0.10486441]
[1745705797906,5.48275673,1823.9,1823.8,0.10486441]
[1745705798107,9.25284789,1824.0,1823.8,0.10486441]
[1745705798530,8.48264789,1824.0,1823.8,0.10486441]
[1745705799962,3.0,1824.0,1823.8,0.92336441]
[1745705800106,0.7702,1824.7,1824.2,0.8185]
[1745705800306,6.25069554,1824.7,1824.2,11.06610007]
[1745705800515,6.25069554,1824.7,1824.3,0.10467626]
[1745705800743,3.0,1824.6,1824.3,0.10467626]
[1745705801234,6.25069554,1824.7,1824.3,0.10467626]
[1745705801445,5.48019347,1824.8,1824.4,5.48123068]
[1745705801604,5.48019347,1824.8,1824.3,5.58607776]
[1745705801802,3.0,1824.7,1824.5,0.10329468]
[1745705802019,3.0,1824.7,1824.4,0.10337083]
[1745705802244,5.48019347,1824.8,1824.6,0.10321853]
[1745705802427,5.48019347,1824.8,1824.5,0.10329468]
[1745705802611,8.48019347,1824.8,1824.7,0.1031424]
[1745705802811,10.04951638,1824.8,1824.6,0.10321853]
[1745705803012,10.04951638,1824.8,1824.7,0.1031424]
[1745705803323,3.0,1824.8,1824.5,5.48094108]
[1745705803642,3.0,1824.8,1824.6,0.10321853]
[1745705804237,3.0,1824.8,1824.5,5.48092877]
[1745705804437,3.0,1824.8,1824.7,0.1031424]
[1745705804745,8.48008786,1824.8,1824.4,5.48113134]
[1745705804931,8.48008786,1824.8,1824.4,6.65923495]
[1745705805539,5.48083145,1824.6,1824.3,0.8185]
[1745705805745,5.48018452,1824.8,1824.3,0.8185]
[1745705805941,3.0,1824.8,1824.3,6.30005241]
[1745705806142,8.48019846,1824.8,1824.4,5.48123326]
[1745705807450,8.48019846,1824.8,1824.3,6.29989249]
[1745705807647,5.4803574,1824.7,1824.3,7.95465232]
[1745705809551,3.0,1824.8,1824.3,7.95465232]
[1745705809728,5.48037623,1824.7,1824.3,7.95465232]
[1745705810131,8.48021868,1824.8,1824.4,5.48121698]
[1745705810330,13.96056638,1824.8,1824.3,7.95469816]
[1745705810548,3.0,1824.7,1824.3,7.95469816]
[1745705810852,8.48038938,1824.7,1824.4,0.79546982]
[1745705811756,8.4802331,1824.8,1824.4,0.79546982]
[1745705812524,5.48039257,1824.7,1824.4,0.79546982]
[1745705813770,8.48018847,1824.8,1824.4,0.79546982]
[1745705814060,8.48018847,1824.8,1824.4,6.27670725]
[1745705815271,6.82162912,1825.3,1824.6,6.28919674]
[1745705815473,6.02581282,1825.3,1824.8,0.8087]
[1745705815779,6.02581282,1825.3,1824.9,5.47965013]
[1745705816136,3.0,1825.2,1824.9,5.47965013]
[1745705816636,0.54713553,1825.3,1824.8,6.28867956]
[1745705816859,6.02580169,1825.3,1824.8,7.94190416]
[1745705817055,3.0,1825.2,1824.8,7.94190416]
[1745705818266,8.47886579,1825.2,1824.8,2.46209184]
[1745705818564,9.27492691,1825.2,1824.8,0.8087]
[1745705818773,3.0,1824.8,1824.7,4.765]
[1745705819086,5.47989506,1824.9,1824.7,4.765]
[1745705819767,8.4796377,1825.0,1824.7,4.765]
[1745705821893,0.7958,1825.5,1824.8,0.86350181]
[1745705822060,5.47796897,1825.5,1825.2,0.8087]
[1745705822398,3.0,1825.6,1825.2,0.8087]
[1745705822540,0.43429355,1825.6,1825.2,6.28751543]
[1745705822887,5.47720296,1825.8,1825.4,6.28683697]
[1745705823040,3.0,1825.7,1825.4,0.8087]
[1745705823240,3.0,1825.8,1825.5,5.47788694]
[1745705823650,3.0,1825.8,1825.5,10.24188694]
[1745705823881,0.54713553,1826.0,1825.5,11.8946256]
[1745705823882,6.02376852,1826.0,1825.5,11.8946256]
[1745705824188,3.0,1826.0,1825.6,6.28614281]
[1745705824393,6.81931877,1826.1,1825.6,6.28614281]
[1745705824394,5.47638324,1826.1,1825.6,6.28614281]
[1745705824578,3.0,1826.0,1825.6,0.8087]
[1745705824776,5.47664611,1826.0,1825.6,2.07905024]
[1745705824989,5.47683846,1825.9,1825.6,2.07905024]
[1745705825176,5.47657184,1826.0,1825.6,2.07905024]
[1745705825579,8.47657184,1826.0,1825.6,7.55667319]
[1745705826481,3.0,1826.0,1825.6,7.55667319]
[1745705826907,3.0,1826.0,1825.7,0.75566732]
[1745705827071,3.0,1826.0,1825.7,6.23289305]
[1745705827272,5.47627304,1826.1,1825.7,6.23289305]
[1745705827467,3.0,1826.1,1825.9,0.7922]
[1745705827923,6.02252067,1826.4,1825.9,6.16112506]
[1745705828079,5.47568007,1826.3,1825.9,11.63786007]
[1745705828278,3.0,1826.2,1825.9,11.63786007]
[1745705828488,3.0,1826.3,1826.0,5.47632504]
[1745705828912,0.7618,1826.5,1826.0,5.47632504]
[1745705828913,5.47511299,1826.5,1826.1,5.47608933]
[1745705829180,3.0,1826.3,1826.2,0.7922]
[1745705829401,6.11,1826.4,1826.2,0.7922]
[1745705829596,3.0,1826.3,1826.2,0.7922]
[1745705830215,5.47555166,1826.3,1826.0,0.795]
[1745705830416,6.11,1826.4,1826.1,5.47601787]
[1745705830620,3.0,1826.3,1826.1,5.47590947]
[1745705830805,3.0,1826.3,1826.2,5.47585149]
[1745705831521,5.47419679,1826.8,1826.7,5.47435265]
[1745705831522,6.11,1826.8,1826.7,5.47435265]
[1745705831729,6.11,1827.0,1826.8,5.47389453]
[1745705832030,6.11,1827.0,1826.9,5.47375335]
[1745705832483,3.0,1826.9,1826.7,0.795]
[1745705832684,3.0,1826.9,1826.8,5.47405298]
[1745705833023,6.11,1827.0,1826.8,10.94810596]
[1745705833223,6.11,1827.0,1826.9,5.47375335]
[1745705833518,9.11,1827.0,1826.9,5.47375335]
[1745705833888,3.0,1826.9,1826.8,5.47387609]
[1745705834506,6.11,1827.0,1826.7,0.795]
[1745705834828,7.021,1827.0,1826.7,6.2691601]
[1745705835203,7.021,1827.0,1826.7,0.795]
[1745705835391,7.021,1827.0,1826.7,11.74327168]
[1745705835592,7.021,1827.0,1826.8,5.47403811]
[1745705835793,7.021,1827.0,1826.7,6.26911909]
[1745705836090,7.021,1827.0,1826.8,5.47405283]
[1745705836491,6.11,1827.0,1826.7,6.26918725]
[1745705836691,3.0,1826.9,1826.6,10.21552265]
[1745705836926,3.0,1826.9,1826.7,5.47433773]
[1745705837131,3.0,1826.9,1826.7,5.47414113]
[1745705837627,6.11,1827.0,1826.8,5.47405298]
[1745705837924,6.11,1827.0,1826.8,5.47380891]
[1745705838127,9.11,1827.0,1826.9,6.30345335]
[1745705838990,9.11,1827.0,1826.9,7.48117958]
[1745705839631,3.0,1827.3,1827.1,5.47306918]
[1745705840225,6.11,1827.4,1827.3,6.28495513]
[1745705840390,0.4144552,1827.7,1827.6,0.8124]
[1745705840591,0.4144552,1827.7,1827.6,5.47165681]
[1745705841291,2.69234668,1829.1,1827.8,0.8124]
[1745705841528,2.69234668,1828.9,1827.9,0.05469724]
[1745705841728,0.27392863,1829.1,1828.0,4.738]
[1745705841729,0.8203,1828.5,1828.0,4.738]
[1745705841920,0.8203,1828.8,1828.3,0.8124]
[1745705842293,0.8203,1829.0,1828.4,4.737]
[1745705842498,0.8203,1829.3,1828.8,5.4679287]
[1745705842715,6.64049823,1829.3,1828.8,10.20491064]
[1745705842943,6.64049823,1829.3,1828.4,0.55494]
[1745705842944,2.69234668,1829.2,1828.4,0.55494]
[1745705843155,5.46777824,1828.9,1828.4,5.46913461]
[1745705843440,2.69234668,1829.2,1828.6,5.46844817]
[1745705843650,0.31018258,1829.2,1828.7,4.737]
[1745705843859,8.92611291,1829.5,1828.9,5.46763028]
[1745705844021,3.0,1829.1,1828.7,4.737]
[1745705844224,5.46735112,1829.1,1828.7,4.945]
[1745705844419,2.69234668,1829.3,1828.8,5.46780087]
[1745705844649,5.46632146,1829.4,1828.8,5.46806649]
[1745705844854,0.76763838,1829.5,1829.1,5.46698549]
[1745705845051,6.23376012,1829.5,1829.2,4.943]
[1745705845260,0.76763838,1829.5,1829.2,10.40964594]
[1745705845467,0.76763838,1829.5,1829.2,4.943]
[1745705845669,0.76763838,1829.5,1829.3,5.46655982]
[1745705845958,0.76763838,1829.5,1829.4,5.46627309]
[1745705846161,0.76763838,1829.5,1829.4,7.36805684]
[1745705846657,0.76763838,1829.5,1829.4,6.27477309]
[1745705846843,1e-08,1829.5,1829.4,6.87942498]
[1745705847045,5.46302525,1830.5,1830.1,0.8085]
[1745705847359,0.8052,1830.7,1830.1,6.27254943]
[1745705847360,5.46273773,1830.6,1830.1,6.27254943]
[1745705847543,3.0,1830.6,1830.1,6.27254943]
[1745705847746,0.3,1830.5,1830.1,0.8085]
[1745705847950,5.46333317,1830.4,1830.1,0.8085]
[1745705848261,0.8052,1830.4,1829.7,4.941]
[1745705848567,3.0,1829.8,1829.6,4.941]
[1745705848721,3.8052,1829.8,1829.4,16.423]
[1745705849070,3.8052,1829.8,1829.3,4.941]
[1745705849071,9.27031233,1829.8,1829.3,4.941]
[1745705849238,0.8052,1830.1,1829.6,5.46567555]
[1745705849566,0.8052,1830.1,1829.7,4.941]
[1745705850075,2.69234668,1830.0,1829.7,4.941]
[1745705850371,0.7952,1830.4,1829.9,5.46476907]
[1745705850526,0.7952,1830.4,1829.9,5.46458561]
[1745705850730,6.25853407,1830.4,1829.9,5.46458561]
[1745705850930,5.46333407,1830.4,1829.8,6.29190947]
[1745705851246,8.46345249,1830.4,1829.8,6.29192861]
[1745705851561,3.0,1830.4,1829.8,0.827]
[1745705851767,3.0,1830.4,1829.7,4.94]
[1745705851968,8.464367,1830.1,1829.8,4.94]
[1745705852263,3.0,1829.9,1829.8,4.94]
[1745705852473,9.31092763,1830.0,1829.8,4.94]
[1745705852624,3.8464367,1830.0,1829.8,4.94]
[1745705852969,3.0,1830.3,1829.8,10.4049111]
[1745705853128,3.0,1830.4,1829.9,5.46461811]
[1745705853328,5.46380331,1830.3,1829.8,4.94]
[1745705853639,8.46388853,1830.2,1829.8,4.94]
[1745705853827,5.46418409,1830.1,1829.7,0.827]
[1745705854026,3.0,1829.9,1829.4,5.46611191]
[1745705854227,3.0,1829.9,1829.5,11.23184478]
[1745705854457,3.0,1829.9,1829.6,4.939]
[1745705854660,3.54641841,1830.0,1829.6,5.46554635]
[1745705854872,0.54641841,1830.0,1829.6,10.40454635]
[1745705855028,3.7952,1830.3,1829.7,5.46535547]
[1745705855228,3.7952,1830.3,1829.6,10.40456132]
[1745705855229,9.25885196,1830.3,1829.6,10.40456132]
[1745705855457,3.0,1830.2,1829.6,4.939]
[1745705855644,0.7952,1830.3,1829.9,5.46477759]
[1745705855843,8.46343897,1830.4,1829.9,5.46477759]
[1745705856068,0.8463439,1830.3,1830.0,10.40333661]
[1745705856271,0.8036,1830.5,1830.0,10.40333661]
[1745705856471,6.26665351,1830.5,1830.0,10.40333661]
[1745705856677,3.0,1830.4,1830.0,10.40333661]
[1745705857187,5.46363231,1830.3,1830.0,4.939]
[1745705857369,0.54636323,1830.2,1830.0,4.939]
[1745705857548,3.0,1830.4,1830.0,4.939]
[1745705857753,5.46371586,1830.3,1830.0,4.939]
[1745705858179,5.46394711,1830.2,1830.0,4.939]
[1745705858379,8.46424528,1830.1,1829.9,4.938]
[1745705858579,0.84642453,1830.0,1829.9,4.938]
[1745705858779,5.46345988,1830.4,1829.9,10.4027203]
[1745705859083,3.0,1830.3,1829.9,10.4027203]
[1745705859265,0.8036,1830.5,1829.9,4.938]
[1745705859576,8.46291799,1830.6,1830.0,5.46426751]
[1745705859782,8.46331895,1830.4,1829.9,10.40263574]
[1745705859983,0.8463319,1830.4,1829.9,10.40255447]
[1745705860184,0.8463319,1830.4,1829.9,4.938]
[1745705860492,5.4633374,1830.4,1829.9,10.40265708]
[1745705860650,3.0,1830.2,1829.9,4.938]
[1745705860845,8.46388857,1830.2,1829.7,6.22432634]
[1745705861191,8.46537683,1829.7,1829.2,10.40486302]
[1745705861370,3.0,1829.7,1829.3,5.46652333]
[1745705861544,3.0,1829.7,1829.3,5.46657191]
[1745705861965,6.26870086,1829.8,1829.4,5.52068364]
[1745705861966,3.0,1829.8,1829.4,5.52068364]
[1745705862182,3.0,1829.8,1829.2,4.938]
[1745705862183,8.46531795,1829.8,1829.2,10.40470431]
[1745705862575,3.0,1829.7,1829.3,5.46656569]
[1745705862913,5.46531795,1829.8,1829.3,10.9329276]
[1745705863231,3.49594668,1830.1,1829.5,5.4657446]
[1745705863526,3.0,1829.9,1829.6,4.937]
[1745705864432,0.34959467,1830.0,1829.7,5.46524614]
[1745705864576,5.46370772,1830.3,1829.8,5.4649443]
[1745705865024,12.35535132,1830.4,1829.8,6.29351477]
[1745705865225,5.4639009,1830.2,1829.8,0.8286]
[1745705865524,1.09276176,1830.2,1829.8,0.8286]
[1745705865692,0.7819,1830.4,1829.8,6.29344882]
[1745705865891,9.2454137,1830.4,1829.9,5.46470032]
[1745705866083,3.0,1830.1,1829.8,0.8286]
[1745705866298,8.46371251,1830.3,1829.8,6.29350936]
[1745705866513,5.4639365,1830.2,1829.8,0.8286]
[1745705866818,6.85683639,1830.2,1829.8,0.8286]
[1745705867189,6.85668776,1830.2,1829.8,0.8286]
[1745705867393,3.0,1829.9,1829.6,4.937]
[1745705867600,3.0,1829.7,1829.6,4.937]
[1745705867785,0.7568,1829.6,1829.2,4.937]
[1745705867985,3.0,1829.3,1829.2,4.937]
[1745705868179,8.46612089,1829.5,1829.2,4.937]
[1745705868492,3.0,1829.6,1829.2,11.23221826]
[1745705868810,8.46555648,1829.7,1829.2,12.95681305]
[1745705869004,8.46555648,1829.7,1829.2,12.90214838]
[1745705869201,8.46525351,1829.8,1829.2,5.7656]
[1745705869401,5.46538378,1829.7,1829.2,11.23233188]
[1745705870010,9.22172771,1829.9,1829.3,5.4662757]
[1745705870221,8.46509186,1829.8,1829.3,5.46637728]
[1745705870417,3.0,1829.8,1829.3,5.46632418]
[1745705870625,8.46515911,1829.8,1829.3,5.46632418]
[1745705870790,9.93385106,1829.8,1829.3,5.46632418]
[1745705871186,4.46869195,1829.8,1829.3,5.46640989]
[1745705871386,8.46529637,1829.8,1829.2,11.23230959]
[1745705871584,8.46529637,1829.8,1829.3,5.4663819]
[1745705871802,3.0,1829.8,1829.3,5.4663221]
[1745705872003,3.0,1829.8,1829.4,5.46613876]
[1745705873123,3.0,1829.8,1829.3,5.46640686]
[1745705873328,5.46556087,1829.7,1829.2,11.23222919]
[1745705873633,8.46579235,1829.6,1829.2,5.7656]
[1745705874123,14.57579235,1829.6,1829.2,5.7656]
[1745705874431,9.11,1829.6,1829.2,5.7656]
[1745705874596,15.71048905,1829.6,1829.2,5.7656]
[1745705874797,5.46603908,1829.5,1829.2,4.937]
[1745705874993,6.11,1829.4,1829.0,0.756]
[1745705875203,6.11,1829.4,1829.0,5.055]
[1745705875204,8.46716964,1829.1,1829.0,5.055]
[1745705875410,9.11,1829.1,1829.0,5.055]
[1745705875913,6.11,1829.1,1829.0,11.02796856]
[1745705876130,6.11,1829.1,1829.0,11.78396856]
[1745705877234,9.11,1829.1,1829.0,5.055]
[1745705877433,9.11,1829.1,1829.0,10.52246856]
[1745705877658,6.11,1829.1,1829.0,10.52246856]
[1745705878679,9.11,1829.1,1829.0,5.055]
[1745705879540,15.40886964,1829.1,1829.0,5.055]
[1745705879946,5.46800588,1828.9,1828.7,16.405]
[1745705880142,5.46794271,1828.9,1828.7,16.405]
[1745705880348,8.46759295,1829.0,1828.7,16.405]
[1745705880642,5.46779507,1828.9,1828.7,16.405]
[1745705880849,8.46806649,1828.8,1828.7,16.405]
[1745705881039,9.86165325,1828.8,1828.7,16.405]
[1745705881241,4.39358676,1828.8,1828.7,16.405]
[1745705881731,8.46806649,1828.8,1828.7,16.405]
[1745705882180,5.46902228,1828.5,1828.2,5.055]
[1745705882341,3.7819,1828.7,1828.2,5.055]
[1745705882342,8.46931033,1828.4,1828.2,5.055]
[1745705882653,3.0,1828.3,1828.2,10.52467485]
[1745705883171,6.11,1828.4,1828.3,5.46956188]
[1745705883361,6.11,1828.4,1828.3,7.85428555]